fUSD/lending_fUSD_20251210
["ID","MTS","AMOUNT","RATE_DAILY","PERIOD"]
[398065519,1765347069992,-500.0,0.00015432,2]
[398065520,1765347070002,-500.0,0.00015432,2]
[398065521,1765347070012,-153.46529357,0.00015432,2]
[398065523,1765348112184,1023.64693301,0.0002041,30]
[398065525,1765348167151,-177.29545729,0.00011192,2]
[398065526,1765348167173,-250.0,0.00011192,2]
[398065527,1765348167193,-180.33,0.00011192,2]
[398065528,1765348167218,-242.0,0.00011192,2]
[398065553,1765348231926,-249.0,0.00012041,2]
[398065554,1765348231937,-250.0,0.00012041,2]
[398065555,1765348231948,-250.0,0.00012311,2]
[398065556,1765348231960,-250.0,0.00012872,2]
[398065557,1765348231971,-150.0,0.00013192,2]
[398065558,1765348231980,-150.0,0.00013192,2]
[398065559,1765348231990,-250.0,0.00013417,2]
[398065560,1765348232001,-184.42,0.00013458,2]
[398065561,1765348232011,-200.0,0.00013571,2]
[398065562,1765348232022,-733.69,0.00013699,2]
[398065563,1765348232033,-544.19,0.0001376,2]
[398065564,1765348232046,-1200.0,0.00014194,2]
[398065565,1765348232057,-1200.0,0.00014194,2]
[398065566,1765348232067,-300.0,0.00014194,2]
[398065567,1765348232077,-300.0,0.00014194,2]
[398065568,1765348232087,-300.0,0.00014194,2]
[398065569,1765348232096,-177.29545729,0.00014197,2]
[398065570,1765348232106,-325.134,0.00014197,2]
[398065571,1765348232120,-11232.1835237,0.00014198,2]
[398065572,1765348232133,-12738.1964763,0.00014198,2]
[398065573,1765348232143,-495.0,0.00014299,2]
[398065574,1765348232153,-1381.65,0.00014388,2]
[398065575,1765348232164,-3738.89600855,0.00014481,2]
[398065576,1765348232177,-897.06821311,0.00014481,2]
[398065577,1765348232187,-150.0,0.00014571,2]
[398065578,1765348232197,-590.21655042,0.00014572,2]
[398065579,1765348232207,-65.03084994,0.00014572,2]
[398065580,1765348232252,-389.96325922,0.00014572,2]
[398065581,1765348232264,-45.00589084,0.00014572,2]
[398065582,1765348232274,-491.00048376,0.00014572,2]
[398065583,1765348232283,-500.0,0.00014572,2]
[398065584,1765348232293,-500.0,0.00014572,2]
[398065585,1765348232303,-500.0,0.00014572,2]
[398065586,1765348232316,-133.9936254,0.00014572,2]
[398065587,1765348232347,-371.3259998,0.00014572,2]
[398065588,1765348232375,-123.57572903,0.00014572,2]
[398065589,1765348232385,-500.0,0.00014572,2]
[398065590,1765348232395,-81.47427097,0.00014572,2]
[398065591,1765348232419,-418.52572903,0.00014572,2]
[398065592,1765348232429,-500.0,0.00014572,2]
[398065593,1765348232438,-500.0,0.00014572,2]
[398065594,1765348232450,-286.497309,0.00014572,2]
[398065595,1765348232461,-676.48965288,0.00014573,2]
[398065666,1765348238040,-500.0,0.00014572,2]
[398065667,1765348238050,-500.0,0.00014572,2]
[398065668,1765348238060,-500.0,0.00014572,2]
[398065669,1765348238070,-500.0,0.00014572,2]
[398065670,1765348238080,-500.0,0.00014572,2]
[398065671,1765348238090,-99535.05103945,0.00014573,2]
[398065672,1765348238317,-12437.86207716,0.00014573,2]
[398065682,1765348240062,-500.0,0.00014573,2]
[398065683,1765348240272,-646850.59723051,0.00014573,2]
[398065684,1765348240281,-23421.6463,0.00014583,2]
[398065685,1765348240294,-300.0,0.00014585,2]
[398065686,1765348240304,-803.95203142,0.00014585,2]
[398065687,1765348240313,-156.01200939,0.00014585,2]
[398065688,1765348240323,-1000.0,0.00014585,2]
[398065689,1765348240333,-200.0,0.00014585,2]
[398065690,1765348240342,-207.4,0.00014585,2]
[398065691,1765348240352,-178.32503027,0.00014585,2]
[398065692,1765348240362,-1000.0,0.00014585,2]
[398065693,1765348240372,-1000.0,0.00014585,2]
[398065694,1765348240383,-1000.0,0.00014585,2]
[398065695,1765348240393,-1000.0,0.00014585,2]
[398065696,1765348240402,-1000.0,0.00014585,2]
[398065697,1765348240412,-1000.0,0.00014585,2]
[398065698,1765348240421,-1000.0,0.00014585,2]
[398065699,1765348240431,-1000.0,0.00014585,2]
[398065700,1765348240440,-1041.77501142,0.00014585,2]
[398065701,1765348240451,-1000.0,0.00014585,2]
[398065702,1765348240460,-1078.86550441,0.00014585,2]
[398065703,1765348240469,-500.0,0.00014585,2]
[398065704,1765348240478,-500.0,0.00014585,2]
[398065705,1765348240488,-250.0,0.00014585,2]
[398065706,1765348240498,-250.0,0.00014585,2]
[398065707,1765348240507,-720.78854626,0.00014585,2]
[398065708,1765348240517,-250.0,0.00014585,2]
[398065709,1765348240527,-250.0,0.00014585,2]
[398065710,1765348240538,-250.0,0.00014585,2]
[398065711,1765348240547,-250.0,0.00014585,2]
[398065712,1765348240556,-1000.0,0.00014585,2]
[398065714,1765348240566,-259.33088401,0.00014585,2]
[398065715,1765348240575,-613.91086761,0.00014585,2]
[398065716,1765348240585,-500.0,0.00014585,2]
[398065717,1765348240594,-500.0,0.00014585,2]
[398065718,1765348240603,-500.0,0.00014585,2]
[398065719,1765348240612,-500.0,0.00014585,2]
[398065720,1765348240621,-250.0,0.00014585,2]
[398065721,1765348240630,-510.31074638,0.00014585,2]
[398065722,1765348240640,-250.0,0.00014585,2]
[398065723,1765348240649,-250.0,0.00014585,2]
[398065724,1765348240658,-250.0,0.00014585,2]
[398065725,1765348240667,-281.5700391,0.00014585,2]
[398065726,1765348240676,-250.0,0.00014585,2]
[398065727,1765348240686,-250.0,0.00014585,2]
[398065728,1765348240695,-261.19686177,0.00014585,2]
[398065729,1765348240704,-500.0,0.00014681,2]
[398065730,1765348240713,-500.0,0.00014681,2]
[398065731,1765348240722,-500.0,0.00014681,2]
[398065732,1765348240731,-642.09349761,0.00014681,2]
[398065733,1765348240741,-648.41,0.00014681,2]
[398065734,1765348240750,-500.0,0.00014681,2]
[398065735,1765348240759,-444.72377409,0.00014681,2]
[398065736,1765348240769,-500.0,0.00014681,2]
[398065737,1765348240779,-500.0,0.00014681,2]
[398065738,1765348240788,-500.0,0.00014681,2]
[398065739,1765348240797,-500.0,0.00014681,2]
[398065740,1765348240807,-841.11,0.00014681,2]
[398065741,1765348240816,-283.88720808,0.00014681,2]
[398065742,1765348240826,-500.0,0.00014681,2]
[398065743,1765348240837,-506.23206351,0.00014681,2]
[398065744,1765348240847,-507.84,0.00014681,2]
[398065745,1765348240856,-500.0,0.00014681,2]
[398065746,1765348240866,-500.0,0.00014681,2]
[398065747,1765348240875,-500.0,0.00014681,2]
[398065748,1765348240884,-500.0,0.00014681,2]
[398065749,1765348240894,-500.0,0.00014681,2]
[398065750,1765348240902,-827.41,0.00014681,2]
[398065751,1765348240912,-532.06,0.00014681,2]
[398065752,1765348240922,-500.0,0.00014681,2]
[398065753,1765348240931,-589.01092589,0.00014681,2]
[398065754,1765348240940,-638.84,0.00014681,2]
[398065755,1765348240950,-500.0,0.00014681,2]
[398065756,1765348240963,-734.18,0.00014681,2]
[398065757,1765348240973,-517.34510341,0.00014681,2]
[398065758,1765348240982,-500.0,0.00014681,2]
[398065759,1765348240992,-500.0,0.00014681,2]
[398065760,1765348241003,-500.0,0.00014681,2]
[398065761,1765348241012,-500.0,0.00014681,2]
[398065762,1765348241022,-500.0,0.00014681,2]
[398065763,1765348241031,-500.0,0.00014681,2]
[398065764,1765348241042,-500.0,0.00014681,2]
[398065765,1765348241052,-500.0,0.00014681,2]
[398065766,1765348241061,-500.0,0.00014681,2]
[398065767,1765348241070,-500.0,0.00014681,2]
[398065768,1765348241079,-712.34,0.00014681,2]
[398065769,1765348241088,-500.0,0.00014681,2]
[398065770,1765348241097,-500.0,0.00014681,2]
[398065771,1765348241106,-500.0,0.00014681,2]
[398065772,1765348241115,-500.0,0.00014681,2]
[398065773,1765348241125,-562.77676756,0.00014681,2]
[398065774,1765348241134,-500.0,0.00014681,2]
[398065775,1765348241144,-789.59,0.00014681,2]
[398065776,1765348241153,-544.93,0.00014681,2]
[398065777,1765348241162,-597.39,0.00014681,2]
[398065778,1765348241172,-1816.17,0.00014681,2]
[398065779,1765348241182,-500.0,0.00014681,2]
[398065780,1765348241192,-607.45,0.00014681,2]
[398065781,1765348241201,-500.0,0.00014681,2]
[398065782,1765348241211,-1491.82,0.00014681,2]
[398065783,1765348241221,-500.0,0.00014681,2]
[398065784,1765348241231,-1189.61,0.00014681,2]
[398065785,1765348241240,-525.19,0.00014681,2]
[398065786,1765348241250,-621.09,0.00014681,2]
[398065787,1765348241260,-500.0,0.00014681,2]
[398065788,1765348241270,-566.3,0.00014681,2]
[398065789,1765348241280,-500.0,0.00014681,2]
[398065790,1765348241293,-500.0,0.00014681,2]
[398065791,1765348241302,-607.07,0.00014681,2]
[398065792,1765348241311,-500.0,0.00014681,2]
[398065793,1765348241320,-560.24,0.00014681,2]
[398065794,1765348241329,-500.0,0.00014681,2]
[398065795,1765348241339,-500.0,0.00014681,2]
[398065796,1765348241348,-500.0,0.00014681,2]
[398065797,1765348241357,-588.62982337,0.00014681,2]
[398065798,1765348241449,-282.1157751,0.00014681,2]
[398065799,1765348241460,-244.26440153,0.00014681,2]
[398065800,1765348241469,-79.55444709,0.00014681,2]
[398065806,1765348243098,-332.72239001,0.00014681,2]
[398065807,1765348243273,-87.7231629,0.00014681,2]
[398065808,1765348243282,-285.21729524,0.00014681,2]
[398065813,1765348245884,-214.78270476,0.00014681,2]
[398065814,1765348245893,-532.39,0.00014681,2]
[398065815,1765348245903,-500.0,0.00014681,2]
[398065816,1765348245913,-500.0,0.00014681,2]
[398065817,1765348245922,-257.75147267,0.00014681,2]
[398065822,1765348683288,2191.9856847,0.00025,120]
[398065823,1765348686232,1181.26028954,0.00025,120]
[398065824,1765348944632,4447.07,0.000202,30]
[398065825,1765349205142,-150.0,0.00013093,2]
[398065826,1765349205164,-150.0,0.00013093,2]
[398065827,1765349205185,-131.2225922,0.00013093,2]
[398065833,1765349432475,-257.0,0.00013093,2]
[398065834,1765349432485,-151.94048842,0.00013093,2]
[398065835,1765349432494,-12.92750988,0.00013093,2]
[398065836,1765349432515,-5.84989792,0.00013093,2]
[398065840,1765349432775,-150.0,0.00013093,2]
[398065842,1765349432787,-150.0,0.00013093,2]
[398065843,1765349432797,-150.0,0.00013252,2]
[398065844,1765349432806,-1500.0,0.0001346,2]
[398065845,1765349432817,-250.0,0.0001357,2]
[398065846,1765349432826,-418.8,0.0001368,2]
[398065847,1765349432835,-166.66,0.00013699,2]
[398065848,1765349432845,-200.0,0.00013699,2]
[398065849,1765349432855,-193.77,0.00013805,2]
[398065850,1765349432864,-150.0,0.00013821,2]
[398065851,1765349432873,-150.0,0.00013821,2]
[398065852,1765349432883,-166.66,0.00013836,2]
[398065853,1765349432892,-1200.0,0.00013885,2]
[398065854,1765349432901,-4971.61,0.00013887,2]
[398065855,1765349432911,-166.66,0.00013973,2]
[398065856,1765349432920,-520.0,0.00013977,2]
[398065857,1765349432930,-250.0,0.00014,2]
[398065858,1765349432939,-480.0,0.00014025,2]
[398065859,1765349432949,-368.0,0.00014026,2]
[398065860,1765349432958,-166.66,0.0001411,2]
[398065861,1765349432967,-386.0,0.00014178,2]
[398065862,1765349432977,-925.33209316,0.00014186,2]
[398065863,1765349432986,-225.0,0.00014225,2]
[398065864,1765349432996,-166.66,0.00014247,2]
[398065865,1765349433006,-500.0,0.00014371,2]
[398065866,1765349433016,-500.0,0.00014371,2]
[398065867,1765349433025,-500.0,0.00014371,2]
[398065868,1765349433035,-500.0,0.00014371,2]
[398065869,1765349433044,-3862.58428889,0.00014372,2]
[398065870,1765349433054,-54854.11874178,0.00014372,2]
[398065871,1765349433066,-10193.54365589,0.00014372,2]
[398065872,1765349433077,-33581.83575188,0.00014372,2]
[398065873,1765349433089,-753.54269787,0.00014372,2]
[398065874,1765349433100,-999.0,0.00014372,2]
[398065875,1765349433134,-500.0,0.00014371,2]
[398065876,1765349433144,-24905.90147879,0.00014372,2]
[398065877,1765349433169,-527.11678612,0.00014372,2]
[398065878,1765349433180,-458.42519,0.00014372,2]
[398065879,1765349433211,-500.0,0.00014371,2]
[398065880,1765349433221,-1769.61254982,0.00014372,2]
[398065881,1765349433262,-658.23230958,0.00014372,2]
[398065882,1765349433330,-500.0,0.00014371,2]
[398065883,1765349433340,-500.0,0.00014371,2]
[398065884,1765349433350,-18041.57267486,0.00014372,2]
[398065885,1765349433362,-5593.56776224,0.00014372,2]
[398065886,1765349433419,-500.0,0.00014371,2]
[398065887,1765349433429,-11087.66553306,0.00014372,2]
[398065888,1765349433441,-976.66904819,0.00014372,2]
[398065889,1765349433452,-932.31905122,0.00014372,2]
[398065890,1765349433510,-500.0,0.00014371,2]
[398065891,1765349433524,-500.0,0.00014371,2]
[398065892,1765349433533,-1518.52160099,0.00014372,2]
[398065893,1765349438254,-500.0,0.00014371,2]
[398065894,1765349438264,-500.0,0.00014371,2]
[398065895,1765349438275,-500.0,0.00014371,2]
[398065896,1765349438284,-500.0,0.00014371,2]
[398065897,1765349438294,-500.0,0.00014371,2]
[398065898,1765349438304,-513.13560678,0.00014371,2]
[398065899,1765349438314,-58984.60726528,0.00014372,2]
[398065900,1765349438326,-1817.01184,0.00014372,2]
[398065901,1765349438338,-12124.80591595,0.00014372,2]
[398065902,1765349438349,-754.07848955,0.00014372,2]
[398065903,1765349438360,-4293.10515349,0.00014372,2]
[398065904,1765349438485,-39955.82228453,0.00014372,2]
[398065923,1765349440239,-580.30464969,0.00014372,2]
[398065924,1765349440251,-29360.23528214,0.00014372,2]
[398065925,1765349440313,-1170.3795753,0.00014372,2]
[398065926,1765349440325,-623.85962557,0.00014372,2]
[398065927,1765349440377,-551.75042112,0.00014372,2]
[398065928,1765349440389,-7224.41528886,0.00014372,2]
[398065929,1765349440400,-1074.70349067,0.00014372,2]
[398065930,1765349440440,-378.66,0.00014372,2]
[398065931,1765349440514,-434254.61588556,0.00014372,2]
[398065932,1765349440528,-1000.0,0.00014373,2]
[398065933,1765349440538,-10110.7584,0.00014373,2]
[398065934,1765349440547,-1006.7022,0.00014373,2]
[398065935,1765349440556,-150.0,0.00014383,2]
[398065936,1765349440566,-166.66,0.00014384,2]
[398065937,1765349440575,-978.23588249,0.000144,2]
[398065938,1765349440584,-250.0,0.00014402,2]
[398065939,1765349440595,-4172.36779953,0.0001441,2]
[398065940,1765349440605,-201.8476631,0.00014456,2]
[398065941,1765349440614,-151.0,0.00014456,2]
[398065942,1765349440623,-151.0,0.00014456,2]
[398065943,1765349440634,-151.0,0.00014456,2]
[398065944,1765349440643,-151.0,0.00014456,2]
[398065945,1765349440653,-151.0,0.00014456,2]
[398065946,1765349440663,-151.0,0.00014456,2]
[398065947,1765349440672,-151.0,0.00014456,2]
[398065948,1765349440681,-151.0,0.00014456,2]
[398065949,1765349440690,-151.0,0.00014456,2]
[398065950,1765349440700,-151.0,0.00014456,2]
[398065951,1765349440710,-151.0,0.00014456,2]
[398065952,1765349440719,-151.0,0.00014456,2]
[398065953,1765349440728,-151.0,0.00014456,2]
[398065954,1765349440737,-151.0,0.00014456,2]
[398065955,1765349440747,-151.0,0.00014456,2]
[398065956,1765349440756,-151.0,0.00014456,2]
[398065957,1765349440766,-151.0,0.00014456,2]
[398065958,1765349440775,-151.0,0.00014456,2]
[398065959,1765349440784,-153.26462044,0.00014456,2]
[398065960,1765349440794,-151.0,0.00014456,2]
[398065961,1765349440803,-151.0,0.00014456,2]
[398065962,1765349440812,-151.0,0.00014456,2]
[398065964,1765349440821,-500.0,0.00014456,2]
[398065966,1765349440830,-158.60499297,0.00014456,2]
[398065967,1765349440839,-500.0,0.00014456,2]
[398065968,1765349440848,-500.0,0.00014456,2]
[398065969,1765349440858,-500.0,0.00014456,2]
[398065970,1765349440867,-500.0,0.00014456,2]
[398065971,1765349440876,-500.0,0.00014456,2]
[398065972,1765349440885,-500.0,0.00014456,2]
[398065973,1765349440894,-500.0,0.00014456,2]
[398065974,1765349440903,-509.87467472,0.00014456,2]
[398065975,1765349440913,-500.0,0.00014456,2]
[398065976,1765349440922,-500.0,0.00014456,2]
[398065977,1765349440931,-500.0,0.00014456,2]
[398065978,1765349440941,-500.0,0.00014456,2]
[398065979,1765349440950,-500.0,0.00014456,2]
[398065980,1765349440959,-500.0,0.00014456,2]
[398065981,1765349440969,-517.54313695,0.00014456,2]
[398065982,1765349440978,-500.0,0.00014456,2]
[398065983,1765349440987,-293.22413694,0.00014456,2]
[398065984,1765349440996,-317.97791297,0.00014456,2]
[398065985,1765349441006,-201.44293728,0.00014456,2]
[398065986,1765349441016,-150.0,0.00014464,2]
[398065987,1765349441028,-151.55115124,0.00014464,2]
[398065988,1765349441037,-150.0,0.00014464,2]
[398065989,1765349441047,-150.0,0.00014464,2]
[398065990,1765349441056,-150.0,0.00014464,2]
[398065991,1765349441065,-150.0,0.00014464,2]
[398065992,1765349441074,-156.67860723,0.00014464,2]
[398065993,1765349441084,-150.0,0.00014464,2]
[398065994,1765349441093,-150.0,0.00014464,2]
[398065995,1765349441103,-150.0,0.00014464,2]
[398065996,1765349441112,-803.95203142,0.00014465,2]
[398065997,1765349441122,-328.7862598,0.00014465,2]
[398065998,1765349441132,-156.01200939,0.00014465,2]
[398065999,1765349441142,-281.5700391,0.00014465,2]
[398066000,1765349441151,-720.78854626,0.00014465,2]
[398066001,1765349441160,-1000.0,0.00014465,2]
[398066002,1765349441169,-1000.0,0.00014465,2]
[398066003,1765349441179,-500.0,0.00014465,2]
[398066004,1765349441189,-1000.0,0.00014465,2]
[398066005,1765349441199,-1041.77501142,0.00014465,2]
[398066006,1765349441208,-1000.0,0.00014465,2]
[398066007,1765349441217,-500.0,0.00014465,2]
[398066008,1765349441228,-300.0,0.00014465,2]
[398066009,1765349441237,-613.91086761,0.00014465,2]
[398066010,1765349441246,-1000.0,0.00014465,2]
[398066011,1765349441256,-500.0,0.00014465,2]
[398066012,1765349441265,-500.0,0.00014465,2]
[398066013,1765349441274,-500.0,0.00014465,2]
[398066014,1765349441283,-500.0,0.00014465,2]
[398066015,1765349441292,-510.31074638,0.00014465,2]
[398066016,1765349441302,-200.0,0.00014465,2]
[398066017,1765349441311,-207.4,0.00014465,2]
[398066018,1765349441322,-178.32503027,0.00014465,2]
[398066019,1765349441331,-250.0,0.00014465,2]
[398066020,1765349441341,-250.0,0.00014465,2]
[398066021,1765349441350,-250.0,0.00014465,2]
[398066022,1765349441359,-250.0,0.00014465,2]
[398066023,1765349441368,-1000.0,0.00014465,2]
[398066024,1765349441378,-250.0,0.00014465,2]
[398066025,1765349441387,-1000.0,0.00014465,2]
[398066026,1765349441396,-1000.0,0.00014465,2]
[398066027,1765349441405,-250.0,0.00014465,2]
[398066028,1765349441415,-1000.0,0.00014465,2]
[398066029,1765349441424,-259.33088401,0.00014465,2]
[398066030,1765349441434,-1000.0,0.00014465,2]
[398066031,1765349441443,-1000.0,0.00014465,2]
[398066032,1765349441452,-1078.86550441,0.00014465,2]
[398066033,1765349441462,-260.107,0.00014471,2]
[398066034,1765349441471,-500.0,0.00014471,2]
[398066035,1765349441480,-500.0,0.00014471,2]
[398066036,1765349441491,-500.0,0.00014471,2]
[398066037,1765349441500,-500.0,0.00014471,2]
[398066038,1765349441510,-622.41,0.00014471,2]
[398066039,1765349441520,-500.0,0.00014471,2]
[398066040,1765349441532,-530.9,0.00014471,2]
[398066041,1765349441542,-500.0,0.00014471,2]
[398066042,1765349441552,-527.19,0.00014471,2]
[398066043,1765349441561,-732.93,0.00014471,2]
[398066044,1765349441572,-611.87,0.00014471,2]
[398066045,1765349441582,-500.0,0.00014471,2]
[398066046,1765349441591,-500.0,0.00014471,2]
[398066047,1765349441601,-194.25362875,0.00014471,2]
[398066048,1765349441610,-499.99999983,0.00014471,2]
[398066049,1765349441620,-500.0,0.00014471,2]
[398066050,1765349441629,-501.17574147,0.00014471,2]
[398066051,1765349441639,-1885.34,0.00014471,2]
[398066052,1765349441648,-175.63473006,0.00014471,2]
[398066053,1765349441658,-500.0,0.00014471,2]
[398066054,1765349441667,-500.0,0.00014471,2]
[398066055,1765349441676,-2714.3,0.00014471,2]
[398066056,1765349441686,-500.0,0.00014471,2]
[398066057,1765349441695,-673.42,0.00014471,2]
[398066058,1765349441705,-500.0,0.00014471,2]
[398066059,1765349441715,-500.0,0.00014472,2]
[398066060,1765349441724,-500.0,0.00014472,2]
[398066061,1765349441735,-500.0,0.00014472,2]
[398066062,1765349441746,-500.0,0.00014472,2]
[398066063,1765349441756,-500.0,0.00014472,2]
[398066064,1765349441766,-500.0,0.00014472,2]
[398066065,1765349441775,-500.0,0.00014472,2]
[398066066,1765349441784,-500.0,0.00014472,2]
[398066067,1765349441793,-500.0,0.00014472,2]
[398066068,1765349441803,-500.0,0.00014472,2]
[398066069,1765349441812,-500.0,0.00014472,2]
[398066070,1765349441822,-500.0,0.00014472,2]
[398066071,1765349441831,-648.41,0.00014472,2]
[398066072,1765349441841,-500.0,0.00014472,2]
[398066073,1765349441851,-538.34,0.00014472,2]
[398066074,1765349441862,-518.17,0.00014472,2]
[398066075,1765349441871,-569.82,0.00014472,2]
[398066076,1765349441881,-500.0,0.00014472,2]
[398066077,1765349441891,-444.72377409,0.00014472,2]
[398066078,1765349441900,-263.20880363,0.00014472,2]
[398066079,1765349441910,-500.0,0.00014472,2]
[398066080,1765349441919,-500.0,0.00014472,2]
[398066081,1765349441928,-500.0,0.00014472,2]
[398066082,1765349441937,-500.0,0.00014472,2]
[398066083,1765349441946,-500.0,0.00014472,2]
[398066084,1765349441956,-500.0,0.00014472,2]
[398066085,1765349441965,-500.0,0.00014472,2]
[398066086,1765349441974,-500.0,0.00014472,2]
[398066087,1765349441984,-500.0,0.00014472,2]
[398066088,1765349441993,-500.0,0.00014472,2]
[398066089,1765349442007,-500.0,0.00014472,2]
[398066090,1765349442032,-500.0,0.00014472,2]
[398066091,1765349442042,-500.0,0.00014472,2]
[398066092,1765349442051,-530.69560457,0.00014472,2]
[398066093,1765349442060,-500.0,0.00014472,2]
[398066094,1765349442069,-500.0,0.00014472,2]
[398066095,1765349442079,-855.72044,0.00014472,2]
[398066096,1765349442088,-500.0,0.00014472,2]
[398066097,1765349442097,-157.87582,0.00014472,2]
[398066098,1765349442106,-500.0,0.00014472,2]
[398066099,1765349442115,-1660.048153,0.00014472,2]
[398066100,1765349442123,-500.0,0.00014472,2]
[398066101,1765349442132,-1731.234734,0.00014472,2]
[398066102,1765349442142,-506.23206351,0.00014472,2]
[398066103,1765349442151,-500.0,0.00014472,2]
[398066104,1765349442160,-841.11,0.00014472,2]
[398066105,1765349442169,-195.089805,0.00014472,2]
[398066106,1765349442178,-768.13,0.00014472,2]
[398066107,1765349442187,-1133.05268,0.00014472,2]
[398066108,1765349442196,-638.64,0.00014472,2]
[398066109,1765349442206,-283.88720808,0.00014472,2]
[398066110,1765349442215,-500.0,0.00014472,2]
[398066111,1765349442225,-500.0,0.00014472,2]
[398066112,1765349442234,-500.0,0.00014472,2]
[398066113,1765349442244,-606.96,0.00014472,2]
[398066114,1765349442255,-507.84,0.00014472,2]
[398066115,1765349442265,-500.0,0.00014472,2]
[398066116,1765349442275,-500.0,0.00014472,2]
[398066117,1765349442284,-500.0,0.00014472,2]
[398066118,1765349442294,-500.0,0.00014472,2]
[398066119,1765349442304,-584.21,0.00014472,2]
[398066120,1765349442313,-500.0,0.00014472,2]
[398066121,1765349442323,-500.0,0.00014472,2]
[398066122,1765349442333,-500.0,0.00014472,2]
[398066123,1765349442343,-500.0,0.00014472,2]
[398066124,1765349442352,-500.0,0.00014472,2]
[398066125,1765349442362,-500.0,0.00014472,2]
[398066126,1765349442373,-1140.44,0.00014472,2]
[398066127,1765349442382,-827.41,0.00014472,2]
[398066128,1765349442392,-1000.14,0.00014472,2]
[398066129,1765349442401,-532.06,0.00014472,2]
[398066130,1765349442412,-500.0,0.00014472,2]
[398066131,1765349442421,-500.0,0.00014472,2]
[398066132,1765349442431,-500.0,0.00014472,2]
[398066133,1765349442441,-389.85168101,0.00014472,2]
[398066134,1765349442451,-500.0,0.00014472,2]
[398066135,1765349442460,-589.01092589,0.00014472,2]
[398066136,1765349442470,-500.0,0.00014472,2]
[398066137,1765349442479,-500.0,0.00014472,2]
[398066138,1765349442488,-1014.61,0.00014472,2]
[398066139,1765349442497,-500.0,0.00014472,2]
[398066140,1765349442506,-638.84,0.00014472,2]
[398066141,1765349442515,-500.0,0.00014472,2]
[398066142,1765349442529,-500.0,0.00014472,2]
[398066143,1765349442538,-500.0,0.00014472,2]
[398066144,1765349442548,-500.0,0.00014472,2]
[398066145,1765349442558,-500.0,0.00014472,2]
[398066146,1765349442568,-500.0,0.00014472,2]
[398066147,1765349442578,-500.0,0.00014472,2]
[398066148,1765349442587,-500.0,0.00014472,2]
[398066149,1765349442597,-500.0,0.00014472,2]
[398066150,1765349442607,-500.0,0.00014472,2]
[398066151,1765349442616,-500.0,0.00014472,2]
[398066152,1765349442626,-500.0,0.00014472,2]
[398066153,1765349442635,-500.0,0.00014472,2]
[398066154,1765349442644,-500.0,0.00014472,2]
[398066155,1765349442653,-541.93266075,0.00014472,2]
[398066156,1765349442663,-500.0,0.00014472,2]
[398066157,1765349442672,-734.18,0.00014472,2]
[398066158,1765349442681,-500.0,0.00014472,2]
[398066159,1765349442691,-500.0,0.00014472,2]
[398066160,1765349442700,-500.0,0.00014472,2]
[398066161,1765349442709,-500.0,0.00014472,2]
[398066162,1765349442719,-500.0,0.00014472,2]
[398066163,1765349442728,-500.0,0.00014472,2]
[398066164,1765349442737,-500.0,0.00014472,2]
[398066165,1765349442747,-500.0,0.00014472,2]
[398066166,1765349442757,-500.0,0.00014472,2]